Cogmind - Beta 15 @@@ ROGUE MODE // 2025.05.23 @ 09:59:57 Player: PieTheDye Result: Destroyed by L-31 Rogue with Katana Performance ------------- Evolutions (2) 1000 Regions Visited (7) 1400 Robots Destroyed (78) 390 Value Destroyed (3230) 3230 Prototype IDs (35) 700 Alien Tech Used (0) 0 Bonus (1014) 1014 TOTAL SCORE: 7734 Bonus ------- High Alert Combat Kills 472 Follower Combat Kills 42 Entered Garrisons 200 Aligned with FarCom 300 Cogmind --------- Core Integrity 0/550 Matter 146/300 Energy 160/160 System Corruption 2% Temperature Cool (92) Movement Treading (250) Ox1 Location -8/Materials Parts ------- > --- POWER (1) -------- Light Nuclear Core > --- PROPULSION (3) --- Armored Treads Armored Treads > --- UTILITY (4) ------ High-capacity Storage Unit Enhanced Optical Array Improved Signal Interpreter Armor Integrity Analyzer > --- WEAPON (3) ------- Heavy Laser High-powered Shotgun Gauss Rifle > --- INVENTORY (20) --- Armored Treads Armored Treads Armored Treads Improved Medium Treads Improved Heat Sink Improved Cooling System Experimental Sensor Array Reaction Control System Authchip [R/Combat] Authchip [R/Combat] Authchip [R/Combat] Relay Coupler [Grunt] (27) Relay Coupler [Sentry] (17) Relay Coupler [Hunter] AWS/Autocannon Peak State ------------ > --- POWER ------------ Light Nuclear Core > --- PROPULSION ------- Medium Treads Medium Treads Medium Treads > --- UTILITY ---------- High-capacity Storage Unit Improved Signal Interpreter Improved Light Armor Plating Hacking Suite > --- WEAPON ----------- High-powered Shotgun Greatsword > --- INVENTORY -------- Light Deuterium Engine Light Treads Armored Treads Medium Treads Improved Heat Sink Improved Cooling System Advanced Visual Processing Unit Experimental Sensor Array Hardened Light Armor Plating Hardened Light Armor Plating Medium Laser High-powered Shotgun High-powered Shotgun AWS/Autocannon Hammer [Rating: 43] Favorites ----------- Power Light Nuclear Core Engine Light Ion Engine Power Core Light Nuclear Core Propulsion Armored Treads Treads Armored Treads Utility Improved Signal Interpreter Device Seismic Detector Storage High-capacity Storage Unit Processor Improved Signal Interpreter Hackware Hacking Suite Protection Hardened Light Armor Plating Weapon High-powered Shotgun Energy Gun Medium Laser Ballistic Gun High-powered Shotgun Ballistic Cannon AWS/Autocannon Impact Weapon Hammer Slashing Weapon Greatsword Build | -11 -10 -10 -10 -9 -8 -8 -8 ------- Run | Yrd Mat Min Exi Min Mat Gar Mat Slots Evolved 4 | . . . . . 4 . . Power . | . . . . . . . . Propulsion 1 | . . . . . 1 . . Utility 2 | . . . . . 2 . . Weapon 1 | . . . . . 1 . . Parts Attached 47 | 7 2 . . 2 20 13 3 Power 6 | 1 . . . 1 2 1 1 Engine 3 | 1 . . . 1 . 1 . Core 3 | . . . . . 2 . 1 Reactor . | . . . . . . . . Propulsion 15 | 2 . . . . 10 3 . Treads 15 | 2 . . . . 10 3 . Leg . | . . . . . . . . Wheel . | . . . . . . . . Hover . | . . . . . . . . Flight . | . . . . . . . . Utility 12 | 2 . . . 1 5 4 . Device 1 | 1 . . . . . . . Storage 2 | 1 . . . . 1 . . Processor 5 | . . . . 1 1 3 . Hackware 1 | . . . . . 1 . . Protection 3 | . . . . . 2 1 . Artifact . | . . . . . . . . Weapon 14 | 2 2 . . . 3 5 2 Energy Gun 5 | 2 2 . . . . . 1 Energy Cannon . | . . . . . . . . Ballistic Gun 6 | . . . . . 1 4 1 Ballistic Cannon 1 | . . . . . 1 . . Launcher . | . . . . . . . . Special Weapon . | . . . . . . . . Impact Weapon 1 | . . . . . . 1 . Slashing Weapon 1 | . . . . . 1 . . Piercing Weapon . | . . . . . . . . Special Melee Weapon . | . . . . . . . . Unidentified Prototypes . | . . . . . . . . Parts Lost 20 | . . . . 2 4 13 1 Power 4 | . . . . 1 1 2 . Propulsion 4 | . . . . . 1 3 . Utility 5 | . . . . 1 1 3 . Weapon 7 | . . . . . 1 5 1 Highest Loss Streak 5 | . . . . 2 1 5 1 To Critical Strikes 1 | . . . . . . 1 . Average Backups 12 | 2 6 7 7 5 9 16 17 Power . | . 1 1 1 . . . . Propulsion 3 | 1 2 2 1 . 2 5 4 Utility 5 | . 1 3 3 2 3 7 10 Weapon 2 | . 1 1 1 2 3 2 2 Tool/Special . | . . . . . . . . Unused Backups 25 | . 1 1 3 . 5 1 14 Power . | . . . . . . . . Propulsion 10 | . . 1 2 . 3 . 4 Utility 14 | . . . 1 . 2 1 10 Weapon 1 | . 1 . . . . . . Tool/Special . | . . . . . . . . Average Slot Usage (%) 90 | . 99 100 99 84 85 90 95 Engine 5 | . 14 14 14 6 2 4 . Core 2 | . . . . . 6 . 5 Treads 26 | . 28 28 28 28 24 26 26 Device 2 | . 14 14 14 1 . . . Storage 9 | . 14 14 14 14 9 9 9 Processor 12 | . . . . 5 8 17 27 Hackware 3 | . . . . . 8 1 . Protection 5 | . . . . . 7 6 . Energy Gun 7 | . 27 28 27 28 6 1 . Ballistic Gun 7 | . . . . . 2 14 18 Impact Weapon 3 | . . . . . . 7 9 Slashing Weapon 2 | . . . . . 7 1 . Peak Build Rating 43 | 7 8 8 11 12 43 40 43 Average Rating 30 | 5 7 7 9 10 37 34 41 On Entrance 15 | . 7 8 8 11 12 40 40 Naked Turns . | . . . . . . . . Heaviest Build 68 | 11 13 13 13 12 68 58 55 Greatest Support 84 | 40 40 40 40 40 84 60 60 Greatest Overweight (x) 2 | 2 . . . . 1 . . Average Overweight (x) . | . . . . . . . . Largest Inventory Capacity 20 | 8 8 8 8 8 20 20 20 Average Capacity 15 | 7 8 8 8 8 13 20 20 Most Carried 20 | 4 8 8 8 8 20 20 20 Average Carried 14 | 2 6 7 7 7 11 18 19 Final Capacity 20 | 8 8 8 8 8 20 20 20 Final Carried 20 | 4 8 8 8 8 19 20 17 Class Distribution -------------------- 86% | Mutant 10% | Scavenger-Mutant Dominant Class ---------------- Mutant | -10/Materials Mutant | -10/Mines Mutant | -10/Exiles Mutant | -9/Mines Mutant | -8/Materials Mutant | -8/Garrison Scavenger-Mutant | -8/Materials Resources | -11 -10 -10 -10 -9 -8 -8 -8 ----------- Run | Yrd Mat Min Exi Min Mat Gar Mat Matter Collected 882 | 123 90 . . 28 284 303 54 Remotely . | . . . . . . . . Salvage Created 3169 | 15 90 . . 99 1498 1153 314 Parts 187 | 4 14 . . 6 78 60 25 Haulers Intercepted 4 | . 1 . . . 3 . . Recyclers Shooed 1 | . . . . . 1 . . Parts Field Recycled . | . . . . . . . . Retrieved Matter . | . . . . . . . . Parts Self-Destructed . | . . . . . . . . Prevented . | . . . . . . . . Kills | -11 -10 -10 -10 -9 -8 -8 -8 ------- Run | Yrd Mat Min Exi Min Mat Gar Mat Combat Hostiles Destroyed 59 | . 3 . . 4 21 26 5 Melee 34 | . . . . . 19 15 . Guns 22 | . 3 . . 4 2 8 5 Classes Destroyed 16 | 1 3 . . 1 7 2 2 Worker 4 | . . . . . 4 . . Builder 2 | . . . . . . . 2 Tunneler 1 | 1 . . . . . . . Hauler 4 | . 1 . . . 3 . . Recycler 2 | . . . . . 2 . . Carrier 1 | . . . . . 1 . . Operator 3 | . 1 . . . 1 . 1 Watcher 2 | . . . . . 2 . . Swarmer 17 | . 3 . . 3 4 7 . Grunt 20 | . . . . 1 8 9 2 Brawler 1 | . . . . . . . 1 Duelist 2 | . . . . . 1 1 . Sentry 9 | . . . . . 4 5 . Specialist 5 | . . . . . 4 1 . Hunter 4 | . . . . . . 2 2 Programmer 1 | . . . . . . 1 . Best Kill Streak 4 | 1 3 . . 3 4 4 3 Combat Bots Only 4 | . 3 . . 3 2 4 2 Max Kills in Single Turn 2 | 1 1 . . 1 1 1 2 Gunslinging . | . . . . . . . . Exploded . | . . . . . . . . Melee 1 | . . . . . 1 1 . Uniques/NPCs Destroyed . | . . . . . . . . Combat | -11 -10 -10 -10 -9 -8 -8 -8 -------- Run | Yrd Mat Min Exi Min Mat Gar Mat Hostile Shots Fired 463 | . 16 . . 38 148 200 61 Missed 130 | . 5 . . 8 48 52 17 Hits 333 | . 11 . . 30 100 148 44 Melee 15 | . . . . . 2 2 11 Projectile 318 | . 11 . . 30 98 146 33 Critical Strikes 19 | . . . . . 3 10 6 Damage Taken 4776 | . 132 . . 279 1456 2102 807 Core 630 | . 15 . . 59 232 214 110 Absorbed by Shields . | . . . . . . . . Regen/Repaired (Parts) 55 | . . . . . 55 . . Core Remaining (%) 85 | 100 . . . 70 . . . Volleys Fired 91 | 2 10 . . 12 19 26 22 Largest 3 | 2 2 . . 2 2 2 3 Hottest 122 | 80 100 . . 100 100 75 122 Shots Fired 188 | 4 20 . 1 24 42 51 46 Gun 183 | 4 20 . 1 24 37 51 46 Cannon 5 | . . . . . 5 . . Launcher . | . . . . . . . . Special . | . . . . . . . . Kinetic 91 | . . . . . 5 42 44 Thermal 97 | 4 20 . 1 24 37 9 2 Explosive . | . . . . . . . . Electromagnetic . | . . . . . . . . Robot Hit Streak 12 | 4 8 . . 3 12 12 8 Robot Miss Streak 5 | . 1 . . 3 3 5 5 Penetration Max 1 | . . . . . . . 1 Secondary Targets 6 | . . . . 2 . 1 3 Max Gunslinging Chain 1 | . . . . 1 . 1 1 Autonomous 5 | . . . . . 5 . . Shots Hit Robots 244 | 4 14 . . 10 94 94 28 Core Hits 105 | 1 8 . . 4 37 42 13 Critical Kills 3 | . . . . . . 2 1 Critical Parts Destroyed 4 | . . . . . . 4 . Critical Strikes 27 | . . . . . 15 11 1 Burn 5 | . . . . . 5 . . Destroy 1 | . . . . . . . 1 Smash 7 | . . . . . . 7 . Sever 14 | . . . . . 10 4 . Melee Attacks 203 | . . . . . 75 121 7 Impact 97 | . . . . . . 90 7 Slashing 106 | . . . . . 75 31 . Piercing . | . . . . . . . . Sneak Attacks 12 | . . . . . 12 . . Combat Hostiles 2 | . . . . . 2 . . Follow-up Attacks . | . . . . . . . . Damage Inflicted 8035 | 43 165 . . 123 4298 2844 562 Guns 1878 | 43 165 . . 123 361 624 562 Cannons 157 | . . . . . 157 . . Explosions . | . . . . . . . . Melee 5994 | . . . . . 3774 2220 . Ramming 6 | . . . . . 6 . . Kinetic 1284 | . . . . . 157 583 544 Thermal 751 | 43 165 . . 123 361 41 18 Explosive . | . . . . . . . . Electromagnetic . | . . . . . . . . Impact 852 | . . . . . . 852 . Slashing 5142 | . . . . . 3774 1368 . Piercing . | . . . . . . . . Highest Corruption 2 | . 1 1 1 1 . 2 2 Average Corruption 1 | . 1 1 1 1 . 1 2 Corruption Purged . | . . . . . . . . Corruption Blocked . | . . . . . . . . Effects 25 | . 1 . 2 2 . 16 4 Message Errors 6 | . . . . 2 . 4 . Matter Fused 3 | . . . . . . 2 1 Heat Flow Errors 4 | . 1 . . . . 3 . Energy Discharges 2 | . . . . . . . 2 Parts Rejected 1 | . . . . . . 1 . Data Loss (minor) 5 | . . . 1 . . 3 1 Data Loss (major) 3 | . . . . . . 3 . Misfires 1 | . . . 1 . . . . Overload Shots . | . . . . . . . . Overflow Damage 679 | . . . . . 414 265 . Projectiles 20 | . . . . . 20 . . Explosions . | . . . . . . . . Melee 659 | . . . . . 394 265 . Knockbacks 1 | . . . . . 1 . . Impact . | . . . . . . . . Kinetic 1 | . . . . . 1 . . Secondary . | . . . . . . . . Self-Inflicted Damage . | . . . . . . . . Shots . | . . . . . . . . Rammed 2 | . . . . . 2 . . Targets Rammed 2 | . . . . . 2 . . Kicked . | . . . . . . . . Crushed . | . . . . . . . . Highest Temperature 249 | 36 195 . 12 199 249 232 92 Average Temperature 71 | 20 64 . 9 107 85 41 36 Received Heat Transfer 1461 | . . . . 48 558 729 126 Effects 3 | . . . . . 3 . . Interference 3 | . . . . . 3 . . Siege Activations . | . . . . . . . . Martial Activations . | . . . . . . . . Shielding Activations . | . . . . . . . . Robots Disrupted . | . . . . . . . . Combat Hostiles . | . . . . . . . . Robots Corrupted 3 | . . . . . . 3 . Combat Hostiles 3 | . . . . . . 3 . Parts Fried 4 | . . . . . . 4 . Impact Corruptions 6 | . . . . . . 6 . Robots Melted . | . . . . . . . . Combat Hostiles . | . . . . . . . . Parts Melted 6 | . 1 . . 1 3 1 . Heat Transferred 2486 | 100 434 . . 370 1443 111 28 Parts Sabotaged . | . . . . . . . . Parts Stolen . | . . . . . . . . Parts Stripped . | . . . . . . . . Power Chain Reactions . | . . . . . . . . Alert | -11 -10 -10 -10 -9 -8 -8 -8 ------- Run | Yrd Mat Min Exi Min Mat Gar Mat Maximum Alert Level 4 | . . . . . 1 4 3 Low Security (%) 42 | 100 100 100 . 100 78 1 . Level 1 12 | . . . . . 21 12 . Level 2 18 | . . . . . . 32 51 Level 3 15 | . . . . . . 28 48 Level 4 10 | . . . . . . 23 . Level 5 . | . . . . . . . . High Security . | . . . . . . . . Max Security . | . . . . . . . . Peak Influence 1513 | 5 66 16 . 30 289 1513 737 Initial 737 | . . 16 . . . 181 737 Average 419 | . 7 3 . 9 91 779 695 Influence Increases 2718 | 5 88 . . 90 828 1502 205 Destroy 0b10 Robot/C 1220 | . 60 . . 80 440 540 100 Destroy 0b10 Robot/NC 100 | 5 10 . . . 60 10 15 Destroy Leader 222 | . 12 . . 10 120 50 30 Allied During Kill 2 | . . . . . . 2 . Successful Hack 40 | . 6 . . . 25 . 9 Disable Machine 45 | . . . . . . 15 30 Anti-Garrison Action 700 | . . . . . . 700 . Destroy Structure 59 | . . . . . 3 50 6 Lose Combat Pursuer 330 | . . . . . 180 135 15 Influence Decreases 2000 | 5 46 42 . 90 549 268 1000 Entered New Map 900 | . . 26 . . . 98 776 Time Decay 860 | 5 46 16 . 70 509 . 214 Lost Part 200 | . . . . 20 40 130 10 Lost Ally 40 | . . . . . . 40 . Squads Dispatched 8 | . . . . . 6 . 2 Investigation 2 | . . . . . 2 . . Extermination . | . . . . . . . . Reinforcement 5 | . . . . . 4 . 1 Assault 1 | . . . . . . . 1 Garrison . | . . . . . . . . Intercept . | . . . . . . . . Searches Triggered . | . . . . . . . . Construction Impeded . | . . . . . . . . Haulers Reinforced . | . . . . . . . . Active Scanning Responses . | . . . . . . . . Cargo Convoy Interrupts . | . . . . . . . . Stealth | -11 -10 -10 -10 -9 -8 -8 -8 --------- Run | Yrd Mat Min Exi Min Mat Gar Mat Distress Signals 5 | . . . . . 4 . 1 Communications Jammed . | . . . . . . . . Distress Signals . | . . . . . . . . Times Spotted 121 | . 9 . . 7 57 36 12 Peak Tracking Total 8 | . 4 . . 4 8 5 6 Tactical Retreats 18 | . . . . . 11 6 1 Traps | -11 -10 -10 -10 -9 -8 -8 -8 ------- Run | Yrd Mat Min Exi Min Mat Gar Mat Traps Triggered 6 | . 1 . . . 2 3 . Indirectly . | . . . . . . . . Trap Hack Attempts . | . . . . . . . . Triggered . | . . . . . . . . Disarmed . | . . . . . . . . Reprogrammed . | . . . . . . . . Reused . | . . . . . . . . Traps Extracted . | . . . . . . . . Installed . | . . . . . . . . Triggered . | . . . . . . . . Machines | -11 -10 -10 -10 -9 -8 -8 -8 ---------- Run | Yrd Mat Min Exi Min Mat Gar Mat Machines Disabled 7 | . . . . . . 5 2 Max in Single Turn 1 | . . . . . . 1 1 Garrison Relay 4 | . . . . . . 4 . Machines Repaired . | . . . . . . . . Machines Dismantled . | . . . . . . . . Machines Sabotaged . | . . . . . . . . Overloaded Fab Kills . | . . . . . . . . Hacking | -11 -10 -10 -10 -9 -8 -8 -8 --------- Run | Yrd Mat Min Exi Min Mat Gar Mat Machines Accessed 18 | . 4 . 2 1 6 3 2 Terminals 12 | . 3 . . . 4 3 2 Fabricators . | . . . . . . . . Repair Stations 1 | . . . . . 1 . . Recycling Units 1 | . 1 . . . . . . Scanalyzers . | . . . . . . . . Garrison Access 1 | . . . . . 1 . . Total Hacks 42 | . 9 . 2 1 21 4 5 Successful 21 | . 3 . 2 1 13 . 2 Failed 20 | . 6 . . . 7 4 3 Catastrophic 6 | . 3 . . . 1 . 2 Database Lockouts 1 | . . . . . 1 . . Manual 31 | . 7 . 1 . 18 . 5 Terminals 34 | . 7 . . . 18 4 5 Fabricators . | . . . . . . . . Repair Stations 2 | . . . . . 2 . . Recycling Units 2 | . 2 . . . . . . Scanalyzers . | . . . . . . . . Garrison Access 1 | . . . . . 1 . . Terminal Hacks 12 | . 2 . 2 1 7 . . Record 1 | . . . 1 . . . . Robot Analysis 1 | . . . . . 1 . . Prototype ID Bank 8 | . 2 . . . 6 . . Open Door 1 | . . . . 1 . . . Proto ID Catalog 1 | . . . 1 . . . . Fabricator Hacks . | . . . . . . . . Repair Station Hacks 2 | . . . . . 2 . . Scan Component 1 | . . . . . 1 . . Repair 1 | . . . . . 1 . . Recycling Unit Hacks . | . . . . . . . . Scanalyzer . | . . . . . . . . Garrison Access Hacks 1 | . . . . . 1 . . Unlock Access 1 | . . . . . 1 . . Unauthorized Hacks 6 | . 1 . . . 3 . 2 Terminals 6 | . 1 . . . 3 . 2 Botnet 6 | . 1 . . . 3 . 2 Fabricators . | . . . . . . . . Repair Stations . | . . . . . . . . Recycling Units . | . . . . . . . . Scanalyzers . | . . . . . . . . Garrison Access . | . . . . . . . . Data Cores Recovered 2 | . 1 . . . . . 1 Used 1 | . 1 . . . . . . Hacking Detections 13 | . 4 . . . 4 3 2 Full Trace Events 1 | . 1 . . . . . . Feedback Events 1 | . 1 . . . . . . Corruption 1 | . 1 . . . . . . Feedback Blocked . | . . . . . . . . Robot Schematics Acquired . | . . . . . . . . Robots Built . | . . . . . . . . Authchips . | . . . . . . . . Time . | . . . . . . . . Total Robot Build Rating . | . . . . . . . . Part Schematics Acquired . | . . . . . . . . Parts Built . | . . . . . . . . Authchips . | . . . . . . . . Time . | . . . . . . . . Total Part Build Rating . | . . . . . . . . Parts Repaired 1 | . . . . . 1 . . Time 44 | . . . . . 44 . . Parts Recycled . | . . . . . . . . Recycled Matter . | . . . . . . . . Retrieved Matter . | . . . . . . . . Retrieved Components . | . . . . . . . . Parts Scanalyzed . | . . . . . . . . Part Schematics Acquired . | . . . . . . . . Parts Damaged . | . . . . . . . . Bothacking | -11 -10 -10 -10 -9 -8 -8 -8 ------------ Run | Yrd Mat Min Exi Min Mat Gar Mat Used RIF Installer . | . . . . . . . . Robots Hacked . | . . . . . . . . Non-combat . | . . . . . . . . Combat . | . . . . . . . . Robot Hacks Applied . | . . . . . . . . Relay Couplers Released 21 | . . . . . . 21 . Machine Destruction 17 | . . . . . . 17 . Programmers 4 | . . . . . . 4 . Fabnet Peak Effective % . | . . . . . . . . Robots Rewired 2 | . . . . . . 2 . Allies Hacked . | . . . . . . . . Hacks Repelled . | . . . . . . . . Allies | -11 -10 -10 -10 -9 -8 -8 -8 -------- Run | Yrd Mat Min Exi Min Mat Gar Mat Total Allies 2 | . . . . . . 2 . Largest Group 2 | . . . . . . 2 . Highest-Rated Group 39 | . . . . . . 39 . Highest-Rated Ally 24 | . . . . . . 24 . Initial Warlord ECA Mod 6 | . . . . . . . 6 Total Orders . | . . . . . . . . Ally Attacks 6 | . . . . . . 6 . Total Damage 156 | . . . . . . 156 . Kills 1 | . . . . . . 1 . Allies Corrupted . | . . . . . . . . Allies Melted . | . . . . . . . . Intel | -11 -10 -10 -10 -9 -8 -8 -8 ------- Run | Yrd Mat Min Exi Min Mat Gar Mat Active Infowar (turns) 3214 | 7 449 125 376 17 . 1785 455 Optics 2240 | . . . . . . 1785 455 Seismic 974 | 7 449 125 376 17 . . . Robot Analysis Total 1 | . . . . . 1 . . Derelict Logs Recovered 1 | . . 1 . . . . . Drone Launches . | . . . . . . . . Drone Recoveries . | . . . . . . . . Exploration | -11 -10 -10 -10 -9 -8 -8 -8 ------------- Run | Yrd Mat Min Exi Min Mat Gar Mat Turns Passed 6308 | 85 449 125 376 246 2035 2537 455 Spaces Moved 2916 | 43 256 78 233 121 878 1119 188 Core 5 | 5 . . . . . . . Treads 2911 | 38 256 78 233 121 878 1119 188 Legs . | . . . . . . . . Wheels . | . . . . . . . . Hover . | . . . . . . . . Flight . | . . . . . . . . Fastest Speed 50 | 50 160 160 160 160 145 170 170 Average Speed 165 | 151 160 160 160 160 165 170 170 Slowest Speed 250 | 160 160 160 160 160 250 170 170 Overloaded Moves . | . . . . . . . . Propulsion Burnouts . | . . . . . . . . Robots Hopped . | . . . . . . . . Potential Cave-ins . | . . . . . . . . Cave-ins Triggered . | . . . . . . . . Exploration Rate (%) 41 | 4 57 27 43 28 65 87 21 Regions Visited 7 Branch Regions 3 Pre-discovered Areas . | . . . . . . . . Known Exits Taken 2 | . . . . 1 1 . . Unknown Exits Taken 4 | 1 1 1 1 . . . . Scrap Searched . | . . . . . . . . Spaces Dug 9 | . . . . . . 5 4 Terrain Destroyed 12 | . . . . . 3 5 4 Melee 9 | . . . . . . 5 4 Projectile 3 | . . . . . 3 . . AOE . | . . . . . . . . Terrain Rammed . | . . . . . . . . Walls Destroyed . | . . . . . . . . Machines Disabled . | . . . . . . . . Actions | -11 -10 -10 -10 -9 -8 -8 -8 --------- Run | Yrd Mat Min Exi Min Mat Gar Mat Total 3825 | 55 276 79 238 150 1278 1482 267 Wait 465 | . 1 . . 15 237 165 47 Move 2910 | 42 255 77 232 120 878 1118 188 Hop . | . . . . . . . . Pick Up 50 | 4 5 1 1 1 24 14 . Fast Attach 23 | 7 2 . 1 . 11 2 . Attach 24 | . . . . 2 7 12 3 Detach . | . . . . . . . . Swap 7 | . . . . . 6 1 . Drop 28 | . 3 1 4 . 19 1 . Fire 91 | 2 10 . . 12 19 26 22 Melee 203 | . . . . . 75 121 7 Ram . | . . . . . . . . Kick . | . . . . . . . . Crush 2 | . . . . . 2 . . Escape Stasis . | . . . . . . . . Rewire 22 | . . . . . . 22 . Trap . | . . . . . . . . Miscellaneous . | . . . . . . . . Route ------- -11/Scrapyard -10/Materials (discovered 2 exits: [*Mat] / [*Min]) -10/Mines (discovered 2 exits: [*Mat] / *Exi) -10/Exiles -9/Mines -8/Materials -8/Garrison (discovered 3 exits: *Mat x3) -8/Materials History --------- Turn | Location | Event 15 | -11/Scrapyard | Discovered new exit (range 16) 86 | -11/Scrapyard | Entered Materials 270 | -10/Materials | Discovered new exit (range 8) 309 | -10/Materials | Build established: Mutant 412 | -10/Materials | Discovered new exit (range 12) 535 | -10/Materials | Entered Mines 564 | -10/Mines | Learned Materials security intel 579 | -10/Mines | Found a hidden stash of uninstalled traps 590 | -10/Mines | Found a damaged Exp. Sensor Array with a note attached 594 | -10/Mines | Found Prototype Device 619 | -10/Mines | Discovered new exit (range 8) 652 | -10/Mines | Deemed a non-threat by the Exiles lab entrance 654 | -10/Mines | Discovered new exit (range 5) 660 | -10/Mines | Entered Exiles 700 | -10/Exiles | Met 8R-AWN 726 | -10/Exiles | Met EX-HEX 779 | -10/Exiles | Met EX-BIN 798 | -10/Exiles | Aligned with FarCom system 800 | -10/Exiles | Given EX-Vault access code 836 | -10/Exiles | Opened EX-Vault 862 | -10/Exiles | Found AWS/Autocannon 910 | -10/Exiles | Warned to stay clear of 0b10 Research branches 1019 | -10/Exiles | Discovered new exit (range 14) 1036 | -10/Exiles | Left Exiles lab with AWS/Autocannon 1036 | -10/Exiles | Entered Mines 1168 | -9/Mines | Met a Derelict who couldn't figure out how to use a Trap Extractor 1268 | -9/Mines | Discovered new exit (range 9) 1281 | -9/Mines | Identified exit to Materials 1282 | -9/Mines | Entered Materials 1282 | -8/Materials | Evolved 4 slots: Propulsion x1, Utility x2, Weapon x1 2493 | -8/Materials | Repaired Greatsword 3150 | -8/Materials | Central database locked down 3317 | -8/Materials | Identified exit to Garrison 3317 | -8/Materials | Entered Garrison 3351 | -8/Garrison | Triggered checkpoint 3427 | -8/Garrison | Garrison Relay disabled 3723 | -8/Garrison | Lost 3 parts (1u2w) 3837 | -8/Garrison | Triggered checkpoint 4020 | -8/Garrison | Discovered new exit (range 9) 4034 | -8/Garrison | Identified exit to Materials 4117 | -8/Garrison | Triggered checkpoint 4143 | -8/Garrison | Garrison Relay disabled 4179 | -8/Garrison | Core integrity fell below 50% 4383 | -8/Garrison | Triggered checkpoint 4465 | -8/Garrison | Triggered checkpoint 4545 | -8/Garrison | Garrison Relay disabled 4628 | -8/Garrison | Discovered exit to Materials (range 11) 4746 | -8/Garrison | Triggered checkpoint 5091 | -8/Garrison | Triggered checkpoint 5158 | -8/Garrison | Lost 5 parts (3n2w) 5254 | -8/Garrison | Core integrity fell below 20% 5337 | -8/Garrison | Triggered checkpoint 5339 | -8/Garrison | Garrison Relay disabled 5376 | -8/Garrison | Discovered exit to Materials (range 19) 5566 | -8/Garrison | Build established: Scavenger-Mutant 5854 | -8/Garrison | Entered Materials 6015 | -8/Materials | Build established: Mutant 6254 | -8/Materials | First assault squad dispatched 6309 | -8/Materials | Destroyed by L-31 Rogue with Katana Last Messages --------------- Terminal linked with 1 system. Awaiting botnet instructions. 06290_ Scanalyzer disabled. 06290_ Slug penetrates Wall. 06290_ C-30 ARC bursts open, deploying its payload. 06290_ G-50 Soldier unfolds itself. 06290_ L-31 Rogue unfolds itself. 06290_ G-47 Trooper unfolds itself. 06290_ I-25 Savior unfolds itself. 06290_ Gauss Rifle severed. 06294_ Slug penetrates Wall. 06297_ Critical hit (Burn: +37). 06299_ Electrolysis Chamber comes online. 06299_ Arm. Treads severed. 06299_ L-31 Rogue suffers critical hit (Burn). 06301_ Hammer destroyed. 06307_ G-47 Trooper destroyed. 06307_ Switching to secondary target: L-31 Rogue. 06307_ Slug penetrates L-31 Rogue. 06307_ U-05 Engineer destroyed. Map ----- +----------------------------------------------------+ | ??????????????# #???###???????????????? | | ??????????????# [ ! #??? !##??????????????? | | ?????? ??????# #??? !#??????????????? | | ????? ##########+#### !#??????????????? | | ??? !#??????????????? | | ??? !#??????????????? | | ??? !##??????????????? | | ?????###########+######### ####???????????????? | | ?????????????? ?????????# #??????????????????? | | ????????????# ???????#####+#########??????????? | | ?????????????????????# #??????????? | | ?????????????????????# """ """ ] ! #??????????? | | ?????????????????????# """ """ #??????????? | | ?????????????????????# """ """ #??????????? | | ?????????????????????# "T" #??????????? | | ?????????????????????# #??????????? | | ?????????????????????########+######??????????? | | ??????????????###########??# #???????????????? | | ??????????????# * # #???????????????? | | ??????????????# w / #???????????????? | | ??????????????# # %#???????????????? | | ??????????????# ??# #???????????????? | | ????????? + = ????# #???????????????? | | ????????# ###########???#### =#???????????????? | | ????????????????#########u##!*#???????????????? | | ????????????????# =l@## %#???????????????? | | ????????????????# """ u%l## =##??????????????? | | ????????????????# """ i|gu# ##+###?????????? | | ????????????????#!""" =%+ #?????????? | | ????????????????# "*# T #?????????? | | ????????????????# """#[ ##+###?????????? | | ????????????????# S"######? ??????????? | | ????????????????# / #???????"" ?????????? | | ????????????????###########????????" ????????? | | ???????????????????????????????????? #???????? | | ????????????????????????????????????? #???????? | | ??????????????????????????????????????#???????? | | ??????????????????????????????????????????????? | | ??????????????????????????????????????????????? | | ??????????????????????????????????????????????? | | ??????????????????????????????????????????????? | | ??????????????????????????????????????????????? | | ??????????????????????????????????????????????? | | ??????????????????????????????????????????????? | | | | | | | | | | | | | +----------------------------------------------------+ Best States ------------- Heat Dissipation 31 Energy Generation 14 Energy Capacity 160 Matter Stores 300 Matter Capacity 300 Sight Range 22 Terrain Scan Density 10 Armor Coverage 150 Evasion (%) 40 Armor Integrity Analysis 30 Recoil Reduction 3 Offensive Hacking 10 Authchip Count 4 Item Schematics ----------------- None Robot Schematics ------------------ None Fabricated ------------ Nothing Repaired ---------- Greatsword | 60% | -8/Materials Alien Tech Used ----------------- None Achievements -------------- Preemptive Strike Challenges ------------ None Game ------ Seed MetaCompactPropulsion Manual? 0 Play Time 00:49:57 Cumulative 40.1 hours Start 2025.05.23 @ 09:11:20 End 2025.05.23 @ 09:59:57 Sessions 1 Manual Loads 0 Difficulty Rogue Special Mode None Game No. 47 Rogue 47 Adventurer 0 Explorer 0 Win Type - Total 0 Types 0/0/0/0/0/0/0/0/0/0 Lore% 18 Gallery% 30 Achievement% 33 Wizard Run 0 Options --------- Layout 0 ASCII 0 Keyboard 0 Movement Numpad Keybinds 0 Fullscreen 1 Font 18/SmallcapsGlow Map View 76x50 Zoom Use 0% Tactical HUD 1 Map Filters NONE Filters NONE Steam 1 RUN: 493e8054-6b34-4d5f-9548-83f38dcfe834